[Event "Norm Congress-IM 2018"]
[Site "Saint Louis"]
[Date "2018.02.10"]
[Round "4"]
[White "Stearman, Josiah"]
[Black "Colas, Joshua"]
[Result "0-1"]
[ECO "B15"]
[WhiteElo "2335"]
[BlackElo "2207"]
[Annotator "NA RC"]
[PlyCount "82"]
[EventDate "2018.??.??"]
[EventType "schev"]
[EventCountry "USA"]
[SourceTitle "playchess.com"]
[Source "ChessBase"]
[SourceQuality "1"]
[TimeControl "5400+30"]

1. e4 {[%emt 0:00:00]} c6 {[%emt 0:00:25]} 2. d4 {[%emt 0:00:00]} d5 {[%emt 0:00:09]} 3. Nc3 {[%emt 0:00:00]} dxe4 {[%emt 0:00:05]} 4. Nxe4 {[%emt 0:00:00]} Nf6 {[%emt 0:00:17]} 5. Nxf6+ {[%emt 0:00:03]} exf6 {[%emt 0:00:08]} 6. Bc4 {[%emt 0:03:09]} Bd6 {[%emt 0:00:20]} 7. Qe2+ {[%emt 0:03:24]} Qe7 {[%emt 0:01:09]} 8. Qxe7+ {[%emt 0:00:22]} Kxe7 {[%emt 0:00:29]} 9. Be3 {[%emt 0:00:30] B15: Caro-Kann: 3 Nc3: 3...g6 and 3...dxe4 4 Nxe4 Nf6 5 Nxf6+ exf6} (9. Ne2 Bf5 10. c3 Nd7 11. Bf4 Bxf4 12. Nxf4 Rhe8 13. O-O-O a5 14. Rhe1+ Kf8 15. Bd3 Bxd3 16. Nxd3 Rxe1 17. Rxe1 Re8 18. Rxe8+ Kxe8 {1-0 (32) Pridorozhni,A (2565)-Vaishali,R (2330) St Petersburg 2017}) 9... Be6 {[%emt 0:00:10]} 10. Bxe6 {[%emt 0:00:34]} fxe6 {[%emt 0:00:19]} 11. O-O-O {[%emt 0:00:16]} Nd7 $146 {[%emt 0:00:41]} ({Find the theoretical novelty and annotate with similar games:} 11... Na6 12. Ne2 Nb4 13. c3 Nd5 14. Bd2 b5 15. a4 a5 16. Kc2 Rhb8 17. Ra1 b4 18. Nc1 c5 19. dxc5 Bxc5 20. Nd3 b3+ 21. Kd1 Bd6 {½-½ (21) Lengyel,B (2425)-Kende,G (2265) Balatonbereny 1995}) 12. c4 {[%emt 0:01:24]} b5 {[%emt 0:06:55]} 13. c5 {[%emt 0:01:51]} Bc7 {[%emt 0:00:22]} 14. Ne2 {[%emt 0:01:33]} Rad8 {[%emt 0:01:17]} 15. f4 {[%emt 0:04:17]} f5 {[%emt 0:01:36]} 16. Bf2 {[%emt 0:00:34]} Kf7 {[%emt 0:01:51]} 17. Kb1 {[%emt 0:06:48]} h6 {[%emt 0:01:24]} 18. Bh4 {[%emt 0:05:06]} Rdg8 {[%emt 0:00:36]} 19. Rhe1 {[%emt 0:01:02]} g5 {[%emt 0:00:48]} 20. Bg3 {[%emt 0:00:01]} Nf6 {[%emt 0:04:18]} 21. fxg5 {[%emt 0:00:42]} Bxg3 {[%emt 0:00:10]} 22. g6+ {[%emt 0:00:15]} Rxg6 {[%emt 0:00:15]} 23. Nxg3 {[%emt 0:00:04]} (23. hxg3 $15 Nd5 24. Rd3) 23... Nd5 {[%emt 0:02:18]} 24. Re5 {[%emt 0:01:43]} h5 {[%emt 0:00:25]} 25. Rf1 {[%emt 0:00:30]} Kg7 $2 {[%emt 0:03:22]} ({Black should try} 25... h4 $19 26. Ne4 Rxg2 27. Nd6+ Kf6) 26. Ne2 {[%emt 0:00:44]} h4 {[%emt 0:01:29]} 27. Rf2 {[%emt 0:00:24]} Kf7 {[%emt 0:01:01]} 28. Ng1 {[%emt 0:12:03]} h3 {[%emt 0:08:33]} 29. Nxh3 {[%emt 0:01:45]} Rh4 {[%emt 0:00:09]} 30. Rxd5 {[%emt 0:17:17]} exd5 {[%emt 0:01:54]} 31. Rxf5+ {[%emt 0:02:50]} Ke7 {[%emt 0:03:36]} 32. Rf4 {[%emt 0:24:43]} (32. Rf2 $142) 32... Rgg4 {[%emt 0:00:14]} 33. Rxg4 {[%emt 0:00:52]} Rxg4 {[%emt 0:00:07]} 34. g3 {[%emt 0:00:06]} Rxd4 {[%emt 0:00:07]} 35. Nf4 {[%emt 0:00:08]} Rd2 {[%emt 0:00:54]} 36. h4 {[%emt 0:00:08]} Rh2 {[%emt 0:00:31]} 37. Nd3 {[%emt 0:00:51]} Ke6 {[%emt 0:00:29]} 38. Kc1 $19 {[%emt 0:02:10]} a5 {[%emt 0:00:06]} 39. h5 {[%emt 0:00:57]} Kf5 {[%emt 0:00:14]} 40. g4+ {[%emt 0:00:49]} Ke4 {[%emt 0:00:06]} 41. Ne1 {[%emt 0:00:04]} Rh4 {[%emt 0:00:13]} 0-1